bitfinex-derivatives/quotes_ETHF0:USTF0_20250330
["timestamp","ask_amount","ask_price","bid_price","bid_amount"]
[1743356060585,1.10906,1804.0,1803.8,2.57927048]
[1743356060891,1.87534,1804.1,1803.9,2.52943]
[1743356061086,1.87534,1804.1,1804.0,1.4203]
[1743356062282,1.10913,1803.9,1803.8,2.57926048]
[1743356062488,5.00713,1803.9,1803.8,0.00831048]
[1743356063090,5.00713,1803.9,1803.8,1.11750048]
[1743356063289,5.00713,1803.9,1803.8,2.53450048]
[1743356063596,3.898,1803.9,1803.8,2.53450048]
[1743356063797,5.00713,1803.9,1803.8,1.42531048]
[1743356066296,5.00713,1803.9,1803.8,2.53450048]
[1743356066494,5.00713,1803.9,1803.8,1.42531048]
[1743356068494,5.00713,1803.9,1803.8,0.00831048]
[1743356074402,5.00513,1803.9,1803.8,0.00831048]
[1743356074704,5.00513,1803.9,1803.8,1.49891048]
[1743356074900,2.77239,1804.2,1803.8,6.15551048]
[1743356074901,1.10896,1804.2,1803.8,6.15551048]
[1743356075094,1.1089,1804.3,1804.1,1.10897]
[1743356075297,3.896,1804.2,1804.1,1.10897]
[1743356075707,5.00494,1804.2,1804.1,1.10897]
[1743356076505,1.109,1804.1,1804.0,3.2078]
[1743356078607,2.5548,1804.1,1804.0,3.2078]
[1743356079600,2.5548,1804.1,1803.9,1.10911]
[1743356079802,2.5548,1804.1,1803.9,4.31691]
[1743356080001,1.4458,1804.1,1804.0,1.10906]
[1743356080307,1.10892,1804.3,1804.1,1.109]
[1743356080500,5.00394,1804.2,1804.0,1.10902]
[1743356082599,5.004,1804.2,1804.0,1.10902]
[1743356082909,1.109,1804.1,1803.9,4.31688]
[1743356083210,2.4919,1804.1,1804.0,1.10906]
[1743356083701,5.00399,1804.2,1804.0,1.10906]
[1743356084503,1.5051,1804.1,1804.0,1.10906]
[1743356088813,3.895,1804.2,1804.1,1.109]
[1743356090116,1.109,1804.1,1804.0,1.4808]
[1743356090313,3.2517,1804.1,1804.0,1.4808]
[1743356091710,3.2517,1804.1,1804.0,2.58986]
[1743356095405,2.1427,1804.1,1804.0,2.58986]
[1743356095607,1.3758,1804.1,1804.0,2.58986]
[1743356099121,3.895,1804.2,1804.1,1.109]
[1743356099323,5.00394,1804.2,1804.1,2.5179]
[1743356099520,6.42674,1804.2,1804.1,2.5179]
[1743356100817,1.4228,1804.2,1804.1,2.5179]
[1743356101022,3.891,1804.2,1804.1,2.5179]
[1743356101725,0.00831048,1804.6,1804.5,1.10876]
[1743356102718,0.00831048,1804.6,1804.5,3.28006]
[1743356108329,1.43701048,1804.6,1804.5,3.28006]
[1743356112127,2.54571048,1804.6,1804.5,1.4071]
[1743356112331,1.10882,1804.4,1804.3,1.4097]
[1743356112625,1.10888,1804.3,1804.2,3.2078]
[1743356112934,1.109,1804.1,1804.0,0.7569]
[1743356113229,4.997,1804.1,1804.0,2.1666]
[1743356113429,3.888,1804.1,1804.0,3.27566]
[1743356115230,4.997,1804.1,1804.0,2.1666]
[1743356115436,4.997,1804.1,1804.0,3.27566]
[1743356115437,3.888,1804.1,1804.0,3.27566]
[1743356116730,1.447,1804.3,1804.0,2.1666]
[1743356116931,0.00831048,1804.6,1804.5,1.10876]
[1743356117626,0.00831048,1804.6,1804.5,4.04756]
[1743356119030,1.10856,1804.9,1804.5,4.04756]
[1743356119031,3.888,1804.9,1804.7,1.10858]
[1743356119330,3.888,1804.9,1804.8,2.62707]
[1743356119536,5.3457,1804.9,1804.8,1.5185]
[1743356120322,1.10857,1804.8,1804.5,2.52901]
[1743356120527,4.5802,1804.8,1804.5,0.7079]
[1743356120728,2.7719,1804.5,1803.8,0.00831048]
[1743356120925,1.10894,1804.2,1804.1,1.5214]
[1743356121824,1.3724,1804.3,1804.1,1.5214]
[1743356122030,1.3724,1804.3,1804.2,1.10894]
[1743356122331,5.2594,1804.3,1804.2,1.81864]
[1743356122629,3.887,1804.4,1804.3,1.10887]
[1743356123034,3.887,1804.4,1804.3,2.58637]
[1743356123225,5.4015,1804.4,1804.3,2.58637]
[1743356123928,1.81684,1804.6,1804.3,2.58637]
[1743356124135,1.5145,1804.6,1804.5,1.10876]
[1743356124434,5.4015,1804.6,1804.5,1.10876]
[1743356125037,5.4015,1804.6,1804.5,1.86916]
[1743356125238,5.4015,1804.6,1804.5,0.7604]
[1743356125437,5.4015,1804.6,1804.5,1.86916]
[1743356125637,5.4015,1804.6,1804.5,3.34666]
[1743356125839,3.887,1804.6,1804.5,3.34666]
[1743356127930,6.4104,1804.6,1804.5,2.2379]
[1743356128134,5.3017,1804.6,1804.5,3.34666]
[1743356128629,4.99462,1804.8,1804.6,1.10868]
[1743356128832,6.40932,1804.8,1804.7,1.4531]
[1743356129036,4.99462,1804.8,1804.7,1.4531]
[1743356131939,3.886,1804.8,1804.3,3.2078]
[1743356132141,1.10894,1804.2,1804.1,1.4859]
[1743356132440,3.885,1804.3,1804.1,1.4859]
[1743356132744,4.99383,1804.4,1804.2,1.1089]
[1743356133139,4.99383,1804.4,1804.3,1.4278]
[1743356133533,3.885,1804.4,1804.1,1.4859]
[1743356133742,1.10899,1804.2,1804.0,1.10904]
[1743356133937,1.10899,1804.2,1804.0,2.53684]
[1743356134141,1.109,1804.1,1804.0,1.4278]
[1743356134539,0.7189,1804.1,1804.0,2.53686]
[1743356134836,1.8279,1804.1,1804.0,1.4278]
[1743356135040,0.7189,1804.1,1804.0,1.4278]
[1743356135236,0.7189,1804.1,1804.0,2.53686]
[1743356135736,1.81721,1804.3,1804.1,1.109]
[1743356136036,1.81721,1804.3,1804.2,1.5211]
[1743356136340,8.20166,1804.4,1804.2,2.63004]
[1743356136635,8.20166,1804.4,1804.3,0.7341]
[1743356136840,8.20166,1804.4,1804.3,2.2552]
[1743356137038,7.0928,1804.4,1804.3,2.2552]
[1743356137641,3.2078,1804.4,1804.3,2.2552]
[1743356138040,3.2078,1804.4,1804.3,3.36408]
[1743356139242,6.48262,1804.6,1804.4,1.10881]
[1743356139443,6.48262,1804.6,1804.5,1.4315]
[1743356140545,2.59862,1804.6,1804.5,1.4315]
[1743356140747,6.48262,1804.6,1804.5,1.4315]
[1743356141750,5.3739,1804.6,1804.5,2.54026]
[1743356141956,6.4826,1804.6,1804.5,1.4315]
[1743356144546,6.4826,1804.6,1804.5,2.54026]
[1743356144845,6.4826,1804.6,1804.5,1.4315]
[1743356145345,3.2078,1804.7,1804.6,1.1087]
[1743356145551,4.99154,1804.9,1804.7,1.1086]
[1743356145751,4.99154,1804.9,1804.8,1.5168]
[1743356146349,1.10854,1804.9,1804.8,1.5168]
[1743356146653,27.79120237,1805.0,1804.9,1.10851]
[1743356146856,28.89965237,1805.0,1804.9,1.10851]
[1743356147047,28.89965237,1805.0,1804.8,2.2361]
[1743356147048,28.89965237,1805.0,1804.8,3.35294048]
[1743356147351,4.99976048,1805.0,1804.8,3.35294048]
[1743356147542,8.20760048,1805.0,1804.8,3.35297048]
[1743356148752,1.4143,1804.9,1804.8,3.35297048]
[1743356149149,2.52281,1804.9,1804.8,1.52511048]
[1743356149654,2.52281,1804.9,1804.8,0.00831048]
[1743356151356,2.52281,1804.9,1804.8,1.45391048]
[1743356153660,2.52281,1804.9,1804.8,2.56248048]
[1743356154461,1.4143,1804.9,1804.8,2.56248048]
[1743356158453,2.52281,1804.9,1804.8,1.45391048]
[1743356159155,2.52281,1804.9,1804.8,2.56248048]
[1743356159358,1.4143,1804.9,1804.8,2.56248048]
[1743356160764,0.00831048,1805.0,1804.9,1.10851]
[1743356160961,0.00831048,1805.0,1804.9,2.52041]
[1743356161360,1.44481048,1805.0,1804.9,2.52041]
[1743356167360,2.55326048,1805.0,1804.9,1.4119]
[1743356167561,3.94481048,1805.0,1804.5,3.2078]
[1743356167763,3.2078,1804.8,1804.5,1.3938]
[1743356167977,7.09511048,1805.0,1804.6,5.3529]
[1743356168160,3.88731048,1805.0,1804.9,1.10851]
[1743356168356,5.37121048,1805.0,1804.9,1.10851]
[1743356168561,27.10769189,1805.4,1805.3,1.10827]
[1743356168762,23.89989189,1805.4,1805.3,1.10827]
[1743356170168,23.89989189,1805.4,1805.3,1.86847]
[1743356170973,5.39691048,1805.5,1805.4,1.1082]
[1743356171171,5.39691048,1805.5,1805.4,2.539]
[1743356171674,3.88731048,1805.5,1805.4,2.539]
[1743356171965,0.00831048,1805.5,1805.4,2.539]
[1743356172167,3.2078,1805.6,1805.5,1.10814]
[1743356172364,29.3085641,1805.9,1805.7,1.10801]
[1743356172562,29.3085641,1805.9,1805.8,1.5001]
[1743356172763,27.7987641,1805.9,1805.8,1.5001]
[1743356173170,23.9207641,1805.9,1805.8,2.60806]
[1743356173475,23.9207641,1805.9,1805.8,1.5001]
[1743356173775,23.9207641,1805.9,1805.8,2.60806]
[1743356174476,0.02087221,1805.9,1805.8,2.60806]
[1743356175976,0.02087221,1805.9,1805.8,1.5001]
[1743356176175,1.12877221,1805.9,1805.6,1.80544]
[1743356176370,4.5885,1805.8,1805.7,1.4286]
[1743356176575,5.2896,1805.8,1805.7,2.53662]
[1743356177168,3.877,1805.8,1805.7,2.53662]
[1743356177669,3.876,1806.3,1806.0,1.10783]
[1743356177868,5.05194,1806.2,1806.1,1.4945]
[1743356178073,4.98369,1806.3,1806.1,2.60227]
[1743356178365,1.10771,1806.2,1806.1,1.4945]
[1743356178578,1.1077,1806.3,1806.1,2.60227]
[1743356178772,4.9837,1806.3,1806.1,2.60227]
[1743356178974,4.9837,1806.3,1806.2,1.4945]
[1743356180770,1.1078,1806.1,1805.9,2.55247]
[1743356180971,4.31556,1806.2,1806.0,2.60203]
[1743356181173,1.10776,1806.2,1806.1,1.4942]
[1743356182379,4.31556,1806.2,1806.1,1.4942]
[1743356182778,1.10791,1805.9,1805.7,1.10802]
[1743356182992,3.875,1806.0,1805.9,1.1079]
[1743356183181,1.1079,1805.9,1805.8,1.4942]
[1743356183375,1.1079,1805.9,1805.6,3.9199]
[1743356183376,1.10802,1805.7,1805.6,3.2078]
[1743356183873,1.10816,1805.5,1805.3,2.52962]
[1743356184179,1.10816,1805.5,1805.4,1.4201]
[1743356184379,4.31596,1805.5,1805.4,1.4201]
[1743356184976,4.31596,1805.5,1805.3,1.4201]
[1743356184977,1.10823,1805.4,1805.3,1.4201]
[1743356185574,5.07598,1805.5,1805.3,1.4201]
[1743356185775,5.07598,1805.5,1805.3,2.52835]
[1743356185978,4.5899,1805.8,1805.3,4.6279]
[1743356186176,3.874,1805.8,1805.7,1.10802]
[1743356186884,8.93757,1806.0,1805.8,1.10795]
[1743356187175,1.10791,1805.9,1805.7,1.108]
[1743356187481,1.10791,1805.9,1805.8,1.3926]
[1743356187777,7.8297,1806.0,1805.6,1.10808]
[1743356187778,1.108,1805.8,1805.6,1.10808]
[1743356188079,4.3158,1805.8,1805.6,1.3926]
[1743356188282,1.10802,1805.7,1805.6,1.3926]
[1743356188476,3.874,1805.7,1805.3,1.10825]
[1743356188677,1.10816,1805.5,1805.3,2.50085]
[1743356188883,1.4278,1805.4,1805.3,2.50085]
[1743356189074,1.4278,1805.4,1805.3,1.10825]
[1743356189984,7.0818,1805.8,1805.4,1.10816]
[1743356190175,1.10808,1805.6,1805.4,1.10816]
[1743356191177,2.57336,1805.7,1805.5,1.10813]
[1743356191580,1.10809,1805.6,1805.4,1.10816]
[1743356191780,2.57339,1805.6,1805.4,1.10816]
[1743356192278,1.4653,1805.6,1805.4,1.10816]
[1743356193582,2.57341,1805.6,1805.4,1.10816]
[1743356193780,4.6731,1805.6,1805.2,3.96701048]
[1743356193974,6.014,1805.5,1805.2,1.86751048]
[1743356194182,1.3818,1805.4,1805.2,1.86751048]
[1743356194483,1.3818,1805.4,1805.3,1.10827]
[1743356194681,1.3818,1805.4,1805.2,0.75921048]
[1743356194682,3.874,1805.5,1805.4,1.1082]
[1743356194984,3.2078,1805.6,1805.5,1.10814]
[1743356195978,1.10797,1805.8,1805.6,1.10805]
[1743356196172,1.485,1805.7,1805.6,1.10805]
[1743356196481,1.485,1805.7,1805.6,1.10808]
[1743356196683,1.485,1805.7,1805.6,1.84378]
[1743356196881,8.18874,1805.9,1805.7,1.10801]
[1743356197082,1.485,1805.8,1805.7,1.10801]
[1743356197284,3.2078,1805.9,1805.8,1.10796]
[1743356197784,6.46578,1806.1,1805.8,1.10791]
[1743356197990,2.59284,1806.0,1805.9,0.6879]
[1743356198180,2.59286,1806.0,1805.8,1.10791]
[1743356198386,1.485,1805.9,1805.7,0.6879]
[1743356198584,1.485,1805.9,1805.8,1.10796]
[1743356199786,4.98078,1806.1,1805.9,1.10784]
[1743356199988,1.3912,1806.0,1805.9,1.10784]
[1743356200187,3.873,1806.1,1806.0,1.10784]
[1743356200386,5.2642,1806.1,1806.0,1.10784]
[1743356200785,6.37197,1806.1,1805.9,1.10785]
[1743356200982,1.3912,1806.0,1805.9,1.10785]
[1743356201380,3.873,1806.1,1806.0,1.10784]
[1743356201584,4.98077,1806.1,1806.0,1.10784]
[1743356201783,5.2642,1806.1,1806.0,1.10784]
[1743356202285,6.372,1806.1,1805.9,1.10787]
[1743356202491,2.48138,1806.0,1805.8,1.10794]
[1743356202679,1.3735,1806.0,1805.9,1.1079]
[1743356202882,2.48138,1806.0,1805.8,1.10794]
[1743356203086,2.48138,1806.0,1805.7,0.6879]
[1743356203283,1.3735,1806.0,1805.9,1.1079]
[1743356206498,1.3735,1806.0,1805.6,3.9435]
[1743356206699,1.1079,1805.9,1805.7,1.8168]
[1743356206992,1.1079,1805.9,1805.8,1.10796]
[1743356207394,2.6041,1805.9,1805.8,1.10796]
[1743356207894,1.10796,1805.8,1805.7,0.7088]
[1743356208094,2.60416,1805.8,1805.7,0.7088]
[1743356208299,2.60419,1805.8,1805.6,5.05154]
[1743356208493,1.4301,1805.7,1805.6,5.05154]
[1743356208687,1.86224,1805.9,1805.8,1.10796]
[1743356209796,3.29234,1805.9,1805.8,1.4603]
[1743356209998,2.1844,1805.9,1805.8,2.56826]
[1743356210993,1.4301,1805.9,1805.8,2.56826]
[1743356211600,1.10788,1806.0,1805.8,2.56826]
[1743356211990,1.10788,1806.0,1805.9,2.5697]
[1743356212194,7.0808,1806.1,1805.9,2.5697]
[1743356212195,8.1886,1806.1,1805.9,2.5697]
[1743356212496,9.6364,1806.1,1806.0,1.4618]
[1743356212896,9.6364,1806.1,1806.0,2.56964]
[1743356213509,5.7634,1806.1,1806.0,2.56964]
[1743356213708,5.7634,1806.1,1806.0,1.4618]
[1743356217604,5.7634,1806.1,1806.0,2.56964]
[1743356218014,4.3156,1806.1,1806.0,1.4618]
[1743356218209,1.4466,1806.2,1806.0,1.4618]
[1743356218417,5.71348,1806.3,1806.2,1.10771]
[1743356218720,28.21522189,1806.5,1806.1,0.7204]
[1743356218911,23.89989189,1806.5,1806.2,1.4171]
[1743356219106,25.00743189,1806.5,1806.3,1.10763]
[1743356219305,23.89989189,1806.5,1806.4,2.52469]
[1743356219510,20.23138506,1806.6,1806.5,1.10753]
[1743356219811,20.23138506,1806.6,1806.5,6.44863]
[1743356220017,20.23138506,1806.6,1806.5,12.81763]
[1743356220203,25.49726278,1807.2,1806.5,19.85824319]
[1743356220408,25.49726278,1807.2,1807.1,1.10716]
[1743356221113,25.49726278,1807.2,1807.1,1.82336]
[1743356221904,1.4466,1807.3,1807.1,1.82336]
[1743356221905,1.4466,1807.3,1807.2,1.1071]
[1743356222109,1.4466,1807.3,1807.1,0.7162]
[1743356222413,1.4466,1807.3,1807.1,1.83167048]
[1743356222606,3.2078,1807.8,1807.2,3.2078]
[1743356222806,3.2078,1807.8,1807.2,3.9332]
[1743356222807,4.6855,1807.8,1807.2,3.9332]
[1743356223011,4.6855,1807.8,1807.2,0.7254]
[1743356223012,3.2078,1807.6,1807.2,0.7254]
[1743356223212,1.4777,1807.5,1807.4,1.10698]
[1743356223716,1.10702,1807.4,1807.1,1.83165048]
[1743356223918,1.4246,1807.3,1807.1,1.83165048]
[1743356224114,1.4246,1807.3,1807.2,1.1071]
[1743356224311,1.4246,1807.3,1807.2,2.5931]
[1743356224512,1.4246,1807.3,1807.2,3.282]
[1743356225512,3.868,1807.4,1807.3,1.10704]
[1743356225717,2.53153,1807.5,1807.3,1.10704]
[1743356225917,1.4246,1807.5,1807.3,1.10704]
[1743356226109,1.4246,1807.5,1807.2,2.1749]
[1743356226110,1.4246,1807.5,1807.4,1.10698]
[1743356226311,1.4246,1807.5,1807.2,3.28196]
[1743356226511,2.53155,1807.5,1807.2,1.79597]
[1743356226810,2.53155,1807.5,1807.2,3.25274]
[1743356227110,27.42432597,1808.9,1808.1,2.76629]
[1743356227310,1.435,1808.5,1808.4,3.2078]
[1743356227511,1.435,1808.5,1808.3,3.21611048]
[1743356227814,10.1102,1808.4,1808.3,3.21611048]
[1743356228216,16.8542,1808.4,1808.3,3.21611048]
[1743356228415,1.10664,1808.0,1807.7,3.2078]
[1743356228715,1.10677,1807.8,1807.4,5.4184]
[1743356228913,1.10677,1807.8,1807.4,3.2078]
[1743356229112,1.10677,1807.8,1807.4,4.31474]
[1743356229113,9.3998,1807.7,1807.4,4.31474]
[1743356229613,5.5328,1807.6,1807.5,1.10692]
[1743356230218,5.5328,1807.6,1807.5,1.84082]
[1743356230522,7.634,1807.6,1807.5,1.84082]
[1743356230912,7.634,1807.6,1807.5,1.10692]
[1743356231111,7.634,1807.6,1807.4,4.32303048]
[1743356231310,5.5328,1807.5,1807.4,4.32303048]
[1743356231721,7.634,1807.5,1807.4,4.32303048]
[1743356232014,7.634,1807.5,1807.4,3.21611048]
[1743356232210,7.634,1807.5,1807.4,0.00831048]
[1743356232409,7.634,1807.5,1807.4,1.11529048]
[1743356233016,3.87531048,1807.7,1807.4,4.59071048]
[1743356233211,5.5328,1807.6,1807.5,1.10688]
[1743356233415,5.5328,1807.6,1807.5,1.10692]
[1743356233815,7.634,1807.6,1807.4,1.11527048]
[1743356234017,5.5328,1807.5,1807.4,3.21611048]
[1743356234315,5.5328,1807.6,1807.5,1.10692]
[1743356235219,0.00831048,1807.7,1807.6,1.10685]
[1743356235416,2.10951048,1807.7,1807.6,1.10685]
[1743356235616,7.64231048,1807.7,1807.6,1.10685]
[1743356236023,0.00831048,1807.7,1807.6,1.10685]
[1743356236220,0.00831048,1807.7,1807.6,5.83005]
[1743356236415,0.00831048,1807.7,1807.6,8.88365]
[1743356240724,0.00831048,1807.7,1807.6,6.38365]
[1743356241929,0.00831048,1807.7,1807.6,16.22887982]
[1743356242125,4.5858,1808.3,1808.2,1.10649]
[1743356242323,8.3558,1808.3,1808.2,1.10649]
[1743356242521,1.10665,1808.0,1807.6,0.5536]
[1743356242722,1.10675,1807.8,1807.5,3.2078]
[1743356242928,1.10675,1807.8,1807.6,1.10685]
[1743356243131,6.63962,1807.7,1807.5,1.1069]
[1743356243428,5.5328,1807.7,1807.4,0.00831048]
[1743356243724,1.10692,1807.5,1807.4,0.00831048]
[1743356243929,5.5328,1807.6,1807.4,0.00831048]
[1743356244228,6.223,1807.5,1807.4,0.00831048]
[1743356244429,0.6902,1807.5,1807.4,0.00831048]
[1743356244617,6.223,1807.5,1807.4,0.00831048]
[1743356244818,6.223,1807.5,1807.4,1.11529048]
[1743356245318,6.223,1807.5,1807.4,0.00831048]
[1743356245919,6.223,1807.5,1807.4,1.11529048]
[1743356246130,6.223,1807.5,1807.4,0.00831048]
[1743356246333,7.32992,1807.5,1807.4,0.00831048]
[1743356247031,11.19392,1807.5,1807.4,0.00831048]
[1743356248230,1.10707,1807.3,1807.1,1.10714]
[1743356248630,8.86896,1807.5,1807.3,1.10704]
[1743356248831,5.5328,1807.4,1807.3,1.10704]
[1743356249830,7.0312,1807.4,1807.3,1.10704]
[1743356253536,8.13818,1807.4,1807.2,0.00831048]
[1743356253836,5.5328,1807.3,1807.2,1.11536048]
[1743356254139,6.9089,1807.3,1807.2,1.11536048]
[1743356254330,8.01594,1807.3,1807.2,0.00831048]
[1743356254930,8.01594,1807.3,1807.2,1.11541048]
[1743356256241,6.9089,1807.3,1807.2,1.11541048]
[1743356257041,6.9089,1807.3,1807.2,1.66901048]
[1743356257233,6.9089,1807.3,1807.2,1.11541048]
[1743356257532,6.9089,1807.3,1807.2,1.66901048]
[1743356257731,6.9089,1807.3,1807.2,1.11541048]
[1743356258542,8.01594,1807.3,1807.2,1.11541048]
[1743356258741,6.9089,1807.3,1807.2,1.11541048]
[1743356258941,6.9089,1807.3,1807.2,1.66901048]
[1743356259241,10.1167,1807.3,1806.7,0.5536]
[1743356259438,10.1167,1807.3,1806.8,1.10734]
[1743356259439,1.10728,1806.9,1806.8,1.10734]
[1743356259633,4.31505,1807.0,1806.8,1.10732]
[1743356259837,6.9599,1806.9,1806.8,1.10732]
[1743356260029,8.06718,1806.9,1806.7,1.10736]
[1743356260228,5.5328,1806.8,1806.7,1.10736]
[1743356260536,6.997,1806.8,1806.7,1.10741]
[1743356267437,6.997,1806.8,1806.7,2.51381]
[1743356268042,8.10435,1806.8,1806.7,2.51381]
[1743356268241,6.997,1806.8,1806.7,2.51381]
[1743356270138,8.10435,1806.8,1806.7,1.4064]
[1743356270339,6.997,1806.8,1806.7,2.51381]
[1743356270539,6.997,1806.8,1806.7,1.10741]
[1743356272041,6.997,1806.8,1806.6,1.41651048]
[1743356272237,8.7406,1806.7,1806.2,11.3277504]
[1743356272432,1.10761,1806.4,1806.2,13.8630504]
[1743356272638,1.3961,1806.3,1806.2,14.4166504]
[1743356272846,1.3961,1806.3,1806.2,13.8630504]
[1743356273043,6.9289,1806.3,1806.2,13.8630504]
[1743356273246,6.9289,1806.3,1806.2,14.4174504]
[1743356273444,6.9289,1806.3,1806.2,13.8630504]
[1743356277245,6.9289,1806.3,1806.2,12.4354504]
[1743356278149,8.03655,1806.3,1806.2,11.3277504]
[1743356278346,7.6546,1806.3,1806.2,11.3277504]
[1743356278547,7.6546,1806.3,1806.2,1.10771]
[1743356279046,5.5328,1806.2,1805.8,0.7391]
[1743356279251,5.70617,1806.1,1805.9,3.24485]
[1743356279455,10.1312,1806.1,1806.0,1.10784]
[1743356279644,10.1312,1806.1,1806.0,2.52864]
[1743356280246,10.1312,1806.1,1806.0,1.10784]
[1743356281155,11.23897,1806.1,1805.9,1.83236048]
[1743356281352,5.5328,1806.0,1805.7,3.2078]
[1743356281553,1.10799,1805.8,1805.6,1.10807]
[1743356281756,2.2321,1805.9,1805.6,1.10807]
[1743356281757,1.5057,1805.7,1805.6,1.10807]
[1743356281959,4.97185,1806.0,1805.8,1.10793]
[1743356282259,7.0385,1805.9,1805.8,1.10793]
[1743356282451,7.0385,1805.9,1805.8,2.55683]
[1743356282646,7.0385,1805.9,1805.8,3.30563]
[1743356282851,8.1464,1805.9,1805.8,2.1977]
[1743356283056,7.0385,1805.9,1805.8,3.30566]
[1743356284665,8.1464,1805.9,1805.8,0.7488]
[1743356284860,8.14642,1805.9,1805.7,1.11631048]
[1743356285059,5.5328,1805.8,1805.7,1.11631048]
[1743356285257,7.0001,1805.8,1805.7,2.55711048]
[1743356286766,7.0001,1805.8,1805.7,5.76491048]
[1743356290360,7.0001,1805.8,1805.7,4.65691048]
[1743356290564,7.0001,1805.8,1805.7,5.76493048]
[1743356292364,7.0001,1805.8,1805.7,2.55713048]
[1743356292571,7.0001,1805.8,1805.7,5.76493048]
[1743356292969,8.10806,1805.8,1805.7,3.21611048]
[1743356294065,7.0001,1805.8,1805.7,3.21611048]
[1743356294568,8.10806,1805.8,1805.7,3.21611048]
[1743356296173,7.0001,1805.8,1805.7,4.32413048]
[1743356296364,7.0001,1805.8,1805.7,5.74693048]
[1743356300973,7.0001,1805.8,1805.7,4.32413048]
[1743356301371,7.0001,1805.8,1805.7,5.71933048]
[1743356307277,7.0001,1805.8,1805.7,4.32413048]
[1743356307486,7.7541,1805.8,1805.7,4.32413048]
[1743356309285,8.86206,1805.8,1805.7,4.32413048]
[1743356309681,7.7541,1805.8,1805.7,4.32413048]
[1743356310286,8.86206,1805.8,1805.7,4.32413048]
[1743356310989,7.7541,1805.8,1805.7,4.32413048]
[1743356312588,7.7541,1805.8,1805.7,1.11633048]
[1743356312787,7.7541,1805.8,1805.7,4.32413048]
[1743356312991,8.86206,1805.8,1805.7,3.21611048]
[1743356313588,8.86206,1805.8,1805.7,0.00831048]
[1743356314392,4.7213,1805.8,1805.1,3.2078]
[1743356314687,4.7213,1805.8,1805.0,1.10842]
[1743356314688,1.10835,1805.2,1805.0,1.10842]
[1743356314893,1.5183,1805.1,1805.0,4.31622]
[1743356315093,7.0511,1805.1,1805.0,4.31622]
[1743356315292,7.0511,1805.1,1805.0,1.10842]
[1743356316090,7.0511,1805.1,1805.0,4.31622]
[1743356316292,7.0511,1805.1,1805.0,1.10842]
[1743356316992,7.8087,1805.1,1805.0,1.10842]
[1743356317798,7.8087,1805.1,1804.9,2.63109032]
[1743356318098,6.9911,1805.0,1804.9,1.52264032]
[1743356318286,6.9911,1805.0,1804.9,2.63115032]
[1743356318489,6.9911,1805.0,1804.9,1.52264032]
[1743356318697,6.9911,1805.0,1804.9,2.63115032]
[1743356319594,6.9911,1805.0,1804.9,1.52264032]
[1743356319893,8.09955,1805.0,1804.9,0.00554032]
[1743356320095,8.85975,1805.0,1804.9,0.00554032]
[1743356320398,7.7513,1805.0,1804.9,0.00554032]
[1743356320898,3.87031048,1805.2,1805.1,1.10839]
[1743356320899,0.00831048,1805.2,1805.1,1.10839]
[1743356321099,3.863,1805.6,1805.3,1.10827]
[1743356321100,1.4942,1805.4,1805.3,1.10827]
[1743356321298,5.5328,1805.4,1805.3,4.31607]
[1743356321701,5.5328,1805.4,1805.3,5.74177]
[1743356325300,0.00831048,1805.5,1805.4,1.1082]
[1743356325603,5.54111048,1805.5,1805.4,1.1082]
[1743356325801,5.54111048,1805.5,1805.4,2.4971]
[1743356326197,0.00831048,1805.5,1805.4,2.4971]
[1743356326401,1.409,1805.8,1805.7,1.10802]
[1743356326596,6.9418,1805.8,1805.7,1.10802]
[1743356327298,6.9418,1805.8,1805.6,1.86635]
[1743356327601,6.9729,1805.7,1805.6,1.86635]
[1743356327803,1.4401,1805.7,1805.6,1.86635]
[1743356328001,6.9729,1805.7,1805.6,1.86635]
[1743356330798,6.9729,1805.7,1805.6,0.7583]
[1743356331000,6.9729,1805.7,1805.5,1.3889]
[1743356331303,6.9983,1805.6,1805.5,2.49698]
[1743356331605,1.4655,1805.6,1805.5,2.49698]
[1743356331907,0.00831048,1805.9,1805.8,1.10796]
[1743356332300,5.54111048,1805.9,1805.8,1.10796]
[1743356332896,3.2078,1806.2,1806.1,1.10777]
[1743356333300,10.2553,1806.2,1806.1,1.10777]
[1743356333610,7.0475,1806.2,1806.1,1.10777]
[1743356339903,7.0475,1806.2,1806.0,1.43431048]
[1743356340104,6.9605,1806.1,1806.0,2.54215048]
[1743356340314,1.4277,1806.1,1806.0,2.54215048]
[1743356340523,6.9605,1806.1,1806.0,2.54215048]
[1743356345521,6.9605,1806.1,1805.6,1.10803]
[1743356345722,1.108,1805.8,1805.6,1.10803]
[1743356345915,1.4326,1805.7,1805.6,1.10803]
[1743356346220,1.4326,1805.7,1805.6,1.10808]
[1743356346522,6.9654,1805.7,1805.5,3.2078]
[1743356346717,1.4326,1805.7,1805.6,1.10808]
[1743356346914,1.10794,1805.9,1805.6,2.59463]
[1743356347115,6.64074,1805.9,1805.6,2.59463]
[1743356347316,5.5328,1805.8,1805.6,2.59463]
[1743356347924,5.5328,1805.7,1805.6,2.59463]
[1743356348125,5.5328,1805.8,1805.7,1.10802]
[1743356348720,6.6408,1805.8,1805.6,1.10804]
[1743356349020,5.5328,1805.7,1805.6,1.10804]
[1743356349224,6.2887,1805.7,1805.6,1.10804]
[1743356349927,6.2887,1805.7,1805.5,4.32421048]
[1743356350223,9.463,1805.6,1805.1,4.31617]
[1743356350423,1.10833,1805.2,1805.1,3.2078]
[1743356350617,3.859,1805.2,1805.1,3.2078]
[1743356350926,10.50013,1805.2,1805.1,3.2078]
[1743356351123,11.22613,1805.2,1805.1,3.2078]
[1743356351429,11.22613,1805.2,1804.7,1.10862]